[Event "57th Biel Festival ATO 2024"]
[Site "Biel"]
[Date "2024.07.20"]
[Round "5.29"]
[White "Luedi, Paul"]
[Black "Ernst, Heinz"]
[Result "1/2-1/2"]
[ECO "D60"]
[WhiteElo "1715"]
[BlackElo "1830"]
[Annotator "NA"]
[PlyCount "68"]
[EventDate "2024.07.03"]
[EventType "swiss"]
[EventCountry "SUI"]
[SourceTitle "playchess.com"]
[Source "ChessBase"]
[SourceQuality "1"]
[TimeControl "40/5400+30:1800+30"]

1. d4 {[%emt 0:00:06]} d5 {[%emt 0:00:10]} 2. c4 {[%emt 0:00:24]} e6 {[%emt 0:00:10]} 3. Nc3 {[%emt 0:00:30]} Nf6 {[%emt 0:00:19]} 4. Bg5 {[%emt 0:00:59]} Nbd7 {[%emt 0:00:18]} 5. Nf3 {[%emt 0:01:50]} Be7 {[%emt 0:00:35]} 6. e3 {[%emt 0:00:30]} c6 {[%emt 0:00:26]} 7. Bd3 {[%emt 0:01:20]} O-O {[%emt 0:00:39]} 8. O-O {[%emt 0:04:21]} h6 {[%emt 0:01:25]} 9. Bh4 {[%emt 0:00:22]} dxc4 {[%emt 0:01:07]} 10. Bxc4 {[%emt 0:00:32]} b5 {[%emt 0:00:27]} 11. Bd3 {[%emt 0:05:07]} a6 {[%emt 0:00:37]} 12. h3 {[%emt 0:02:04]} Bb7 {[%emt 0:02:24]} 13. Qe2 {[%emt 0:05:52]} c5 {[%emt 0:02:00]} 14. dxc5 {[%emt 0:11:37]} Nxc5 {[%emt 0:01:13]} 15. Bc2 {[%emt 0:06:21]} Nd5 {[%emt 0:16:53]} 16. Nxd5 {[%emt 0:07:14]} Bxd5 {[%emt 0:00:33]} 17. Bxe7 {[%emt 0:09:36]} Qxe7 {[%emt 0:00:17]} 18. b3 {[%emt 0:01:30]} Qb7 {[%emt 0:02:35]} 19. Rfd1 {[%emt 0:04:55]} Rfd8 {[%emt 0:05:50]} 20. Rac1 {[%emt 0:05:24]} Be4 {[%emt 0:11:25]} 21. Bxe4 {[%emt 0:08:55]} Nxe4 {[%emt 0:00:33]} 22. Rxd8+ {[%emt 0:02:19]} Rxd8 {[%emt 0:00:18]} 23. Rd1 {[%emt 0:03:28]} Rxd1+ {[%emt 0:06:43]} 24. Qxd1 {[%emt 0:00:15]} Qc7 {[%emt 0:00:35]} 25. a4 {[%emt 0:02:18]} bxa4 {[%emt 0:09:19]} 26. bxa4 {[%emt 0:02:06]} Qa5 {[%emt 0:10:14]} 27. Qd7 {[%emt 0:04:09]} Nf6 {[%emt 0:01:05]} 28. Qc8+ {[%emt 0:00:53]} Kh7 {[%emt 0:00:34]} 29. Qc2+ {[%emt 0:00:36]} g6 {[%emt 0:11:48]} 30. e4 {[%emt 0:02:24]} e5 {[%emt 0:05:56]} 31. Qc6 {[%emt 0:01:56]} Kg7 {[%emt 0:01:03]} 32. g4 {[%emt 0:01:10]} g5 {[%emt 0:02:52]} 33. Kg2 {[%emt 0:02:06]} Ng8 {[%emt 0:02:50]} 34. h4 {[%emt 0:01:17]} Ne7 {[%emt 0:00:48]} 1/2-1/2

[Event "57th Biel Festival ATO 2024"]
[Site "Biel"]
[Date "2024.07.20"]
[Round "5.31"]
[White "Spaeti, Kurt"]
[Black "Panda, Gyorgy"]
[Result "1/2-1/2"]
[ECO "B43"]
[WhiteElo "1804"]
[BlackElo "1713"]
[Annotator "NA RC"]
[PlyCount "36"]
[EventDate "2024.07.03"]
[EventType "swiss"]
[EventCountry "SUI"]
[SourceTitle "playchess.com"]
[Source "ChessBase"]
[SourceQuality "1"]
[TimeControl "40/5400+30:1800+30"]

1. e4 {[%emt 0:00:03]} c5 {[%emt 0:00:28]} 2. Nf3 {[%emt 0:00:07]} e6 {[%emt 0:00:10]} 3. d4 {[%emt 0:00:13]} cxd4 {[%emt 0:00:08]} 4. Nxd4 {[%emt 0:00:08]} a6 {[%emt 0:00:05]} 5. Nc3 {[%emt 0:00:41]} b5 {[%emt 0:00:19]} 6. a3 {[%emt 0:05:08]} Qc7 {[%emt 0:00:08]} 7. Be3 {[%emt 0:00:30]} Bb7 {[%emt 0:00:33]} 8. f3 {[%emt 0:02:37]} Nf6 {[%emt 0:01:42]} 9. Qd2 {[%emt 0:02:00]} b4 {[%emt 0:07:08]} 10. Na4 {[%emt 0:09:36]} Nc6 {[%emt 0:04:51]} 11. Nxc6 {[%emt 0:05:03]} Bxc6 {[%emt 0:07:45]} 12. axb4 {[%emt 0:02:17]} d5 {[%emt 0:08:46]} 13. exd5 {[%emt 0:11:24]} Nxd5 {[%emt 0:04:46]} 14. c3 {[%emt 0:04:51]} Nxe3 {[%emt 0:06:38]} 15. Qxe3 {[%emt 0:00:47]} Be7 {[%emt 0:01:07]} 16. Be2 {[%emt 0:08:31]} O-O {[%emt 0:01:08]} 17. O-O {[%emt 0:00:52]} Bd6 {[%emt 0:09:34]} 18. g3 {[%emt 0:05:55]} Bxg3 {[%emt 0:01:44]} 1/2-1/2

[Event "57th Biel Festival ATO 2024"]
[Site "Biel"]
[Date "2024.07.20"]
[Round "5.33"]
[White "Hofer, Friedrich"]
[Black "Cho, Yeonhee"]
[Result "1-0"]
[ECO "C54"]
[WhiteElo "1798"]
[BlackElo "1686"]
[Annotator "NA RC"]
[PlyCount "33"]
[EventDate "2024.07.03"]
[EventType "swiss"]
[EventCountry "SUI"]
[SourceTitle "playchess.com"]
[Source "ChessBase"]
[SourceQuality "1"]
[TimeControl "40/5400+30:1800+30"]

1. e4 {[%emt 0:00:08]} e5 {[%emt 0:00:09]} 2. Nf3 {[%emt 0:00:14]} Nc6 {[%emt 0:00:06]} 3. Bc4 {[%emt 0:00:17]} Bc5 {[%emt 0:00:15]} 4. c3 {[%emt 0:00:13]} Nf6 {[%emt 0:00:09]} 5. d3 {[%emt 0:00:18]} d6 {[%emt 0:00:28]} 6. Nbd2 {[%emt 0:01:02]} a6 {[%emt 0:01:41]} 7. Bb3 {[%emt 0:00:34]} O-O {[%emt 0:00:30]} 8. h3 {[%emt 0:00:14]} Qe7 {[%emt 0:04:26]} 9. O-O {[%emt 0:00:38]} Be6 {[%emt 0:00:24]} 10. Bc2 {[%emt 0:00:35]} h6 {[%emt 0:06:54]} 11. Re1 {[%emt 0:00:31]} Ba7 {[%emt 0:00:21]} 12. Nf1 {[%emt 0:00:16]} Nh5 {[%emt 0:12:23]} 13. d4 {[%emt 0:04:22]} Bc8 {[%emt 0:12:44]} 14. Ne3 {[%emt 0:13:49]} exd4 {[%emt 0:10:49]} 15. Nd5 {[%emt 0:01:38]} Qd8 {[%emt 0:01:02]} 16. cxd4 {[%emt 0:07:01]} Nf6 {[%emt 0:06:39]} 17. Qd3 {[%emt 0:00:44]} 1-0

[Event "57th Biel Festival ATO 2024"]
[Site "Biel"]
[Date "2024.07.20"]
[Round "5.34"]
[White "Cardoso Rodrigues, Michael"]
[Black "Brandes, Stefan"]
[Result "1-0"]
[ECO "B12"]
[WhiteElo "1796"]
[BlackElo "1624"]
[Annotator "NA"]
[PlyCount "23"]
[EventDate "2024.07.03"]
[EventType "swiss"]
[EventCountry "SUI"]
[SourceTitle "playchess.com"]
[Source "ChessBase"]
[SourceQuality "1"]
[TimeControl "40/5400+30:1800+30"]

1. e4 {[%emt 0:00:07]} c6 {[%emt 0:00:09]} 2. d4 {[%emt 0:00:19]} d5 {[%emt 0:00:05]} 3. f3 {[%emt 0:00:08]} dxe4 {[%emt 0:01:18]} 4. fxe4 {[%emt 0:00:11]} e5 {[%emt 0:00:55]} 5. Nf3 {[%emt 0:00:11]} Bg4 {[%emt 0:01:17]} 6. c3 {[%emt 0:00:13]} Bd6 {[%emt 0:00:30]} 7. Bc4 {[%emt 0:15:40]} b5 {[%emt 0:09:26]} 8. Bxf7+ {[%emt 0:10:48]} Kxf7 {[%emt 0:07:53]} 9. Nxe5+ {[%emt 0:00:40]} Bxe5 {[%emt 0:10:48]} 10. O-O+ {[%emt 0:02:41]} Nf6 {[%emt 0:13:49]} 11. Qxg4 {[%emt 0:00:53]} Kg8 {[%emt 0:02:41]} 12. Qe6+ {[%emt 0:03:43]} 1-0

[Event "57th Biel Festival ATO 2024"]
[Site "Biel"]
[Date "2024.07.20"]
[Round "5.36"]
[White "Pantillon, Patrick Andre"]
[Black "Kuenzli, Manuel"]
[Result "1-0"]
[ECO "C50"]
[WhiteElo "1782"]
[BlackElo "1542"]
[Annotator "NA RC"]
[PlyCount "101"]
[EventDate "2024.07.03"]
[EventType "swiss"]
[EventCountry "SUI"]
[SourceTitle "playchess.com"]
[Source "ChessBase"]
[SourceQuality "1"]
[TimeControl "40/5400+30:1800+30"]

1. Nc3 {[%emt 0:00:05]} e5 {[%emt 0:00:20]} 2. e4 {[%emt 0:00:38]} Nc6 {[%emt 0:00:33]} 3. Bc4 {[%emt 0:01:20]} Bc5 {[%emt 0:00:41]} 4. d3 {[%emt 0:02:54]} Nf6 {[%emt 0:00:53]} 5. h3 {[%emt 0:01:55]} h6 {[%emt 0:00:38]} 6. Nf3 {[%emt 0:03:23]} d6 {[%emt 0:01:00]} 7. Qe2 {[%emt 0:05:51]} Bd7 {[%emt 0:01:14]} 8. Be3 {[%emt 0:00:47]} Nd4 {[%emt 0:02:54]} 9. Bxd4 {[%emt 0:00:39]} Bxd4 {[%emt 0:01:14]} 10. Nxd4 {[%emt 0:00:25]} exd4 {[%emt 0:00:10]} 11. Nb5 {[%emt 0:05:06]} Bxb5 {[%emt 0:01:30]} 12. Bxb5+ {[%emt 0:00:17]} c6 {[%emt 0:00:21]} 13. Bc4 {[%emt 0:00:43]} O-O {[%emt 0:00:37]} 14. O-O {[%emt 0:02:16]} Re8 {[%emt 0:01:29]} 15. Qf3 {[%emt 0:01:36]} d5 {[%emt 0:01:54]} 16. exd5 {[%emt 0:00:43]} Nxd5 {[%emt 0:00:30]} 17. Bb3 {[%emt 0:03:38]} Nf6 {[%emt 0:00:56]} 18. Rfe1 {[%emt 0:00:29]} Qd7 {[%emt 0:00:55]} 19. a4 {[%emt 0:08:20]} Re7 {[%emt 0:01:26]} 20. Rxe7 {[%emt 0:00:59]} Qxe7 {[%emt 0:00:19]} 21. a5 {[%emt 0:05:03]} a6 {[%emt 0:01:03]} 22. c3 {[%emt 0:02:59]} dxc3 {[%emt 0:03:27]} 23. bxc3 {[%emt 0:00:26]} Rd8 {[%emt 0:00:34]} 24. Bc4 {[%emt 0:03:02]} Nd5 {[%emt 0:00:54]} 25. d4 {[%emt 0:02:10]} Qf6 {[%emt 0:01:21]} 26. Bxd5 {[%emt 0:02:10]} Rxd5 {[%emt 0:00:25]} 27. Qxf6 {[%emt 0:00:59]} gxf6 {[%emt 0:00:16]} 28. f4 {[%emt 0:03:18]} Kf8 {[%emt 0:01:46]} 29. Kf2 {[%emt 0:00:41]} Ke7 {[%emt 0:00:29]} 30. Ke3 {[%emt 0:00:29]} Kd6 {[%emt 0:01:13]} 31. c4 {[%emt 0:06:23]} Rh5 {[%emt 0:00:19]} 32. Ke4 {[%emt 0:02:00]} Ke6 {[%emt 0:01:10]} 33. Ra3 {[%emt 0:02:24]} f5+ {[%emt 0:02:27]} 34. Kf3 {[%emt 0:01:29]} Kd6 {[%emt 0:01:20]} 35. Rb3 {[%emt 0:00:51]} Kc7 {[%emt 0:00:50]} 36. Rb6 {[%emt 0:01:41]} Rh4 {[%emt 0:01:12]} 37. d5 {[%emt 0:00:57]} Rh5 {[%emt 0:02:26]} 38. dxc6 {[%emt 0:02:15]} bxc6 {[%emt 0:01:01]} 39. c5 {[%emt 0:01:52]} Rh4 {[%emt 0:01:28]} 40. Rxa6 {[%emt 0:00:25]} Kb7 {[%emt 0:00:14]} 41. Rb6+ {[%emt 0:30:34]} Ka7 {[%emt 0:30:52]} 42. Rxc6 {[%emt 0:00:41]} Kb7 {[%emt 0:00:00]} 43. Rf6 {[%emt 0:00:37]} Kc7 {[%emt 0:00:41]} 44. c6 {[%emt 0:00:44]} Kb8 {[%emt 0:00:23]} 45. Rxf7 {[%emt 0:00:26]} Kc8 {[%emt 0:00:34]} 46. a6 {[%emt 0:01:03]} Kb8 {[%emt 0:00:25]} 47. a7+ {[%emt 0:00:19]} Ka8 {[%emt 0:00:23]} 48. c7 {[%emt 0:00:30]} Kxa7 {[%emt 0:00:17]} 49. c8=Q+ {[%emt 0:00:26]} Kb6 {[%emt 0:00:12]} 50. Rb7+ {[%emt 0:00:15]} Ka6 {[%emt 0:00:30]} 51. Qa8# {[%emt 0:00:12]} 1-0

[Event "57th Biel Festival ATO 2024"]
[Site "Biel"]
[Date "2024.07.20"]
[Round "5.40"]
[White "Materia, Mario"]
[Black "Gotti, Nicola"]
[Result "0-1"]
[ECO "D08"]
[WhiteElo "1590"]
[BlackElo "1804"]
[Annotator "NA"]
[PlyCount "44"]
[EventDate "2024.07.03"]
[EventType "swiss"]
[EventCountry "SUI"]
[SourceTitle "playchess.com"]
[Source "ChessBase"]
[SourceQuality "1"]
[TimeControl "40/5400+30:1800+30"]

1. d4 {[%emt 0:00:08]} d5 {[%emt 0:00:05]} 2. c4 {[%emt 0:00:14]} e5 {[%emt 0:00:05]} 3. dxe5 {[%emt 0:00:17]} d4 {[%emt 0:00:06]} 4. Nf3 {[%emt 0:00:43]} Nc6 {[%emt 0:00:07]} 5. a3 {[%emt 0:00:51]} Nge7 {[%emt 0:01:21]} 6. Bg5 {[%emt 0:03:32]} h6 {[%emt 0:01:17]} 7. Bh4 {[%emt 0:01:36]} Qd7 {[%emt 0:02:13]} 8. b4 {[%emt 0:01:25]} g5 {[%emt 0:02:51]} 9. Bg3 {[%emt 0:00:58]} a6 {[%emt 0:04:27]} 10. h3 {[%emt 0:01:06]} Ng6 {[%emt 0:04:15]} 11. b5 {[%emt 0:01:30]} axb5 {[%emt 0:00:32]} 12. cxb5 {[%emt 0:00:13]} Nb4 {[%emt 0:01:43]} 13. Nbd2 {[%emt 0:01:04]} Nd5 {[%emt 0:01:24]} 14. Nb3 {[%emt 0:06:51]} Bxa3 {[%emt 0:02:49]} 15. Qxd4 {[%emt 0:06:29]} Qxb5 {[%emt 0:02:47]} 16. Qd3 {[%emt 0:03:48]} Bb4+ {[%emt 0:12:19]} 17. Nfd2 {[%emt 0:02:04]} Bxd2+ {[%emt 0:01:07]} 18. Kxd2 {[%emt 0:00:20]} Qb4+ {[%emt 0:01:40]} 19. Kc2 {[%emt 0:01:11]} Rxa1 {[%emt 0:02:09]} 20. Nxa1 {[%emt 0:00:30]} Bf5 {[%emt 0:00:08]} 21. e6 {[%emt 0:12:57]} O-O {[%emt 0:03:23]} 22. exf7+ {[%emt 0:04:11]} Kxf7 {[%emt 0:02:23]} 0-1

[Event "57th Biel Festival ATO 2024"]
[Site "Biel"]
[Date "2024.07.22"]
[Round "6.1"]
[White "Andrzejewska, Anna"]
[Black "Nasybullina, Alfia"]
[Result "0-1"]
[ECO "B19"]
[WhiteElo "1933"]
[BlackElo "1997"]
[Annotator "ChessBase"]
[PlyCount "127"]
[EventDate "2024.07.03"]
[EventType "swiss"]
[EventCountry "SUI"]
[SourceTitle "playchess.com"]
[Source "ChessBase"]
[SourceQuality "1"]
[TimeControl "40/5400+30:1800+30"]

1. e4 {[%emt 0:00:04]} c6 {[%emt 0:00:07]} 2. d4 {[%emt 0:00:07]} d5 {[%emt 0:00:04]} 3. Nc3 {[%emt 0:00:12]} dxe4 {[%emt 0:00:07]} 4. Nxe4 {[%emt 0:00:11]} Bf5 {[%emt 0:00:07]} 5. Ng3 {[%emt 0:00:11]} Bg6 {[%emt 0:00:08]} 6. h4 {[%emt 0:00:30]} h6 {[%emt 0:00:43]} 7. Nf3 {[%emt 0:00:42]} Nf6 {[%emt 0:03:08]} 8. h5 {[%emt 0:01:02]} Bh7 {[%emt 0:00:20]} 9. Bd3 {[%emt 0:00:36]} Bxd3 {[%emt 0:00:08]} 10. Qxd3 {[%emt 0:00:05]} e6 {[%emt 0:00:13]} 11. Bd2 {[%emt 0:00:42]} c5 {[%emt 0:01:50]} 12. O-O-O {[%emt 0:14:44]} Nc6 {[%emt 0:01:30]} 13. Rh4 {[%emt 0:11:25]} Be7 {[%emt 0:09:15]} 14. Kb1 {[%emt 0:03:45]} Qb6 {[%emt 0:06:42]} 15. Qb3 {[%emt 0:28:57]} Qxb3 {[%emt 0:03:25]} 16. axb3 {[%emt 0:00:12]} cxd4 {[%emt 0:05:09]} 17. Nxd4 {[%emt 0:08:26]} Nxd4 {[%emt 0:17:03]} 18. Rxd4 {[%emt 0:00:07]} Bc5 {[%emt 0:00:10]} 19. Rf4 {[%emt 0:01:47]} Rd8 {[%emt 0:02:09]} 20. b4 {[%emt 0:08:46]} Bd6 {[%emt 0:01:56]} 21. Rh4 {[%emt 0:01:23]} Bxg3 {[%emt 0:01:04]} 22. fxg3 {[%emt 0:00:04]} Rd5 {[%emt 0:01:54]} 23. Rhh1 {[%emt 0:05:11]} Rxh5 {[%emt 0:06:39]} 24. Rhe1 {[%emt 0:02:08]} Rd5 {[%emt 0:03:15]} 25. c4 {[%emt 0:01:44]} Rd4 {[%emt 0:03:06]} 26. b3 {[%emt 0:01:17]} a6 {[%emt 0:01:07]} 27. Be3 {[%emt 0:01:21]} Rd7 {[%emt 0:00:45]} 28. Bd4 {[%emt 0:04:14]} Ke7 {[%emt 0:01:42]} 29. Bc5+ {[%emt 0:02:09]} Kd8 {[%emt 0:00:20]} 30. Bb6+ {[%emt 0:01:12]} Kc8 {[%emt 0:00:09]} 31. Kc2 {[%emt 0:00:43]} Rxd1 {[%emt 0:01:20]} 32. Rxd1 {[%emt 0:00:02]} Ne4 {[%emt 0:01:11]} 33. Bd4 {[%emt 0:00:48]} Rd8 {[%emt 0:01:43]} 34. Bxg7 {[%emt 0:01:00]} Rxd1 {[%emt 0:00:24]} 35. Kxd1 {[%emt 0:00:03]} h5 {[%emt 0:00:08]} 36. Be5 {[%emt 0:01:40]} f6 {[%emt 0:00:07]} 37. Bb2 {[%emt 0:00:44]} e5 {[%emt 0:00:18]} 38. Ke2 {[%emt 0:00:14]} Nxg3+ {[%emt 0:00:20]} 39. Kf3 {[%emt 0:00:15]} Nf5 {[%emt 0:00:21]} 40. Ke4 {[%emt 0:01:26]} Ne7 {[%emt 0:00:09]} 41. Bc3 {[%emt 0:09:31]} Kd7 {[%emt 0:00:09]} 42. g3 {[%emt 0:02:35]} Ke6 {[%emt 0:00:06]} 43. Be1 {[%emt 0:00:45]} Nf5 {[%emt 0:00:54]} 44. Bf2 {[%emt 0:00:41]} Nd6+ {[%emt 0:00:08]} 45. Kd3 {[%emt 0:07:13]} Nf7 {[%emt 0:03:04]} 46. Ke4 {[%emt 0:02:10]} Ng5+ {[%emt 0:01:25]} 47. Ke3 {[%emt 0:01:43]} Kf5 {[%emt 0:02:02]} 48. Be1 {[%emt 0:00:44]} Ne6 {[%emt 0:01:19]} 49. Bc3 {[%emt 0:03:04]} Nd4 {[%emt 0:04:06]} 50. Bxd4 {[%emt 0:00:38]} exd4+ {[%emt 0:00:07]} 51. Kxd4 {[%emt 0:00:03]} Kg4 {[%emt 0:00:15]} 52. Kc5 {[%emt 0:00:19]} Kxg3 {[%emt 0:00:15]} 53. Kb6 {[%emt 0:00:03]} h4 {[%emt 0:00:08]} 54. Kxb7 {[%emt 0:00:26]} h3 {[%emt 0:00:08]} 55. c5 {[%emt 0:01:56]} h2 {[%emt 0:00:06]} 56. Kxa6 {[%emt 0:01:45]} h1=Q {[%emt 0:00:10]} 57. b5 {[%emt 0:00:22]} Qa8+ {[%emt 0:00:22]} 58. Kb6 {[%emt 0:00:05]} f5 {[%emt 0:00:28]} 59. Kc7 {[%emt 0:01:29]} Qa7+ {[%emt 0:00:31]} 60. Kd6 {[%emt 0:00:20]} Qb8+ {[%emt 0:00:07]} 61. Kc6 {[%emt 0:00:20]} f4 {[%emt 0:00:10]} 62. b6 {[%emt 0:00:09]} f3 {[%emt 0:00:11]} 63. b7 {[%emt 0:00:52]} f2 {[%emt 0:00:06]} 64. Kb6 {[%emt 0:00:19]} 0-1

[Event "57th Biel Festival ATO 2024"]
[Site "Biel"]
[Date "2024.07.22"]
[Round "6.2"]
[White "Meshach, Felix"]
[Black "Oestmann, Lukas"]
[Result "1-0"]
[ECO "B23"]
[WhiteElo "1773"]
[BlackElo "1926"]
[Annotator "ChessBase"]
[PlyCount "127"]
[EventDate "2024.07.03"]
[EventType "swiss"]
[EventCountry "SUI"]
[SourceTitle "playchess.com"]
[Source "ChessBase"]
[SourceQuality "1"]
[TimeControl "40/5400+30:1800+30"]

1. e4 {[%emt 0:00:07]} c5 {[%emt 0:00:04]} 2. Nc3 {[%emt 0:00:04]} Nc6 {[%emt 0:00:05]} 3. f4 {[%emt 0:00:24]} e6 {[%emt 0:00:32]} 4. Nf3 {[%emt 0:00:11]} d5 {[%emt 0:00:10]} 5. Bb5 {[%emt 0:00:25]} Nge7 {[%emt 0:00:07]} 6. exd5 {[%emt 0:01:18]} Nxd5 {[%emt 0:00:55]} 7. Bxc6+ {[%emt 0:04:15]} bxc6 {[%emt 0:00:04]} 8. d3 {[%emt 0:10:52]} Bd6 {[%emt 0:04:52]} 9. Ne5 {[%emt 0:07:00]} Bxe5 {[%emt 0:09:36]} 10. fxe5 {[%emt 0:00:17]} Qh4+ {[%emt 0:04:49]} 11. g3 {[%emt 0:01:29]} Qd4 {[%emt 0:00:59]} 12. Nxd5 {[%emt 0:00:19]} Qxd5 {[%emt 0:01:07]} 13. O-O {[%emt 0:01:03]} Qxe5 {[%emt 0:04:13]} 14. Qf3 {[%emt 0:00:39]} O-O {[%emt 0:01:06]} 15. Be3 {[%emt 0:15:54]} Ba6 {[%emt 0:06:32]} 16. b3 {[%emt 0:02:14]} c4 {[%emt 0:12:33]} 17. dxc4 {[%emt 0:05:13]} c5 {[%emt 0:04:49]} 18. Rad1 {[%emt 0:03:45]} Qc7 {[%emt 0:01:47]} 19. Qe2 {[%emt 0:11:11]} Bb7 {[%emt 0:02:17]} 20. Kf2 {[%emt 0:00:56]} Rad8 {[%emt 0:02:15]} 21. Bg5 {[%emt 0:02:13]} Rde8 {[%emt 0:04:37]} 22. Ke1 {[%emt 0:01:26]} f6 {[%emt 0:03:07]} 23. Bd2 {[%emt 0:01:19]} e5 {[%emt 0:02:08]} 24. Qg4 {[%emt 0:02:26]} Bc8 {[%emt 0:02:50]} 25. Qf3 {[%emt 0:01:50]} f5 {[%emt 0:01:32]} 26. Bc3 {[%emt 0:01:28]} f4 {[%emt 0:02:42]} 27. Qd5+ {[%emt 0:02:17]} Kh8 {[%emt 0:01:41]} 28. Qd6 {[%emt 0:01:12]} Qb7 {[%emt 0:04:48]} 29. Rd5 {[%emt 0:01:48]} Bh3 {[%emt 0:03:19]} 30. Rf2 {[%emt 0:01:37]} Rf6 {[%emt 0:03:36]} 31. Qxc5 {[%emt 0:01:39]} Rc8 {[%emt 0:01:18]} 32. Qa5 {[%emt 0:09:18]} h6 {[%emt 0:03:18]} 33. Bxe5 {[%emt 0:01:51]} Ra6 {[%emt 0:01:49]} 34. Qd2 {[%emt 0:01:04]} Rxa2 {[%emt 0:01:01]} 35. Rd8+ {[%emt 0:01:13]} Rxd8 {[%emt 0:00:28]} 36. Qxd8+ {[%emt 0:00:06]} Kh7 {[%emt 0:00:04]} 37. Qd3+ {[%emt 0:00:26]} Kh8 {[%emt 0:01:00]} 38. Rxf4 {[%emt 0:01:55]} Qe7 {[%emt 0:05:05]} 39. Kd2 {[%emt 0:01:34]} Be6 {[%emt 0:01:35]} 40. Bd6 {[%emt 0:01:47]} Qg5 {[%emt 0:03:42]} 41. Kc3 {[%emt 0:33:57]} Qa5+ {[%emt 0:02:29]} 42. Kd4 {[%emt 0:00:00]} Ra1 {[%emt 0:03:12]} 43. Rf8+ {[%emt 0:00:00]} Bg8 {[%emt 0:00:03]} 44. b4 {[%emt 0:00:00]} Qh5 {[%emt 0:02:49]} 45. Rf1 {[%emt 0:00:00]} Bh7 {[%emt 0:04:53]} 46. Qf3 {[%emt 0:00:00]} Qxf3 {[%emt 0:00:19]} 47. Rxf3 {[%emt 0:00:00]} Bxc2 {[%emt 0:00:05]} 48. c5 {[%emt 0:00:00]} Ba4 {[%emt 0:01:45]} 49. Rf7 {[%emt 0:00:00]} Rd1+ {[%emt 0:03:21]} 50. Kc3 {[%emt 0:00:00]} a6 {[%emt 0:03:10]} 51. Be5 {[%emt 0:00:00]} Re1 {[%emt 0:02:40]} 52. Bxg7+ {[%emt 0:00:00]} Kh7 {[%emt 0:00:15]} 53. Bd4+ {[%emt 0:00:00]} Kg6 {[%emt 0:00:37]} 54. Rf6+ {[%emt 0:00:00]} Kg5 {[%emt 0:00:48]} 55. Rxa6 {[%emt 0:00:00]} Rc1+ {[%emt 0:01:37]} 56. Kb2 {[%emt 0:00:00]} Rc2+ {[%emt 0:01:01]} 57. Kb1 {[%emt 0:00:00]} Bb5 {[%emt 0:01:00]} 58. Be3+ {[%emt 0:00:16]} Kg4 {[%emt 0:00:24]} 59. Kxc2 {[%emt 0:00:22]} Bxa6 {[%emt 0:00:05]} 60. Bxh6 {[%emt 0:00:17]} Kh3 {[%emt 0:00:08]} 61. Kc3 {[%emt 0:00:43]} Kxh2 {[%emt 0:00:06]} 62. Bf4 {[%emt 0:00:13]} Kh3 {[%emt 0:00:09]} 63. Kd4 {[%emt 0:00:13]} Kg4 {[%emt 0:00:07]} 64. Kd5 {[%emt 0:00:24]} 1-0

[Event "57th Biel Festival ATO 2024"]
[Site "Biel"]
[Date "2024.07.22"]
[Round "6.3"]
[White "Noh, Jinwoo"]
[Black "Yu, Tianxiang Carlos"]
[Result "1-0"]
[ECO "B52"]
[WhiteElo "1824"]
[BlackElo "1769"]
[Annotator "NA"]
[PlyCount "47"]
[EventDate "2024.07.03"]
[EventType "swiss"]
[EventCountry "SUI"]
[SourceTitle "playchess.com"]
[Source "ChessBase"]
[SourceQuality "1"]
[TimeControl "40/5400+30:1800+30"]

1. e4 {[%emt 0:00:26]} c5 {[%emt 0:00:11]} 2. Nf3 {[%emt 0:00:05]} d6 {[%emt 0:00:20]} 3. Bb5+ {[%emt 0:00:27]} Bd7 {[%emt 0:00:14]} 4. Bxd7+ {[%emt 0:00:08]} Qxd7 {[%emt 0:00:01]} 5. O-O {[%emt 0:00:13]} Nf6 {[%emt 0:00:07]} 6. Re1 {[%emt 0:00:11]} Nc6 {[%emt 0:01:40]} 7. c3 {[%emt 0:03:37]} e6 {[%emt 0:04:14]} 8. d4 {[%emt 0:01:54]} d5 {[%emt 0:01:48]} 9. e5 {[%emt 0:02:35]} Ng8 {[%emt 0:00:18]} 10. Nbd2 {[%emt 0:07:26]} Rc8 {[%emt 0:02:57]} 11. a3 {[%emt 0:02:12]} h5 {[%emt 0:07:12]} 12. dxc5 {[%emt 0:01:28]} Bxc5 {[%emt 0:00:43]} 13. b4 {[%emt 0:00:12]} Bb6 {[%emt 0:18:46]} 14. c4 {[%emt 0:03:04]} Nh6 {[%emt 0:19:45]} 15. c5 {[%emt 0:09:37]} Bd8 {[%emt 0:01:34]} 16. Nb3 {[%emt 0:01:32]} Nf5 {[%emt 0:00:25]} 17. Qd2 {[%emt 0:04:52]} a6 {[%emt 0:01:24]} 18. a4 {[%emt 0:00:53]} b5 {[%emt 0:01:43]} 19. axb5 {[%emt 0:01:02]} axb5 {[%emt 0:00:01]} 20. Nfd4 {[%emt 0:01:27]} Nfxd4 {[%emt 0:00:53]} 21. Nxd4 {[%emt 0:00:09]} Nxd4 {[%emt 0:01:22]} 22. Qxd4 {[%emt 0:00:07]} Qc6 {[%emt 0:01:07]} 23. h4 {[%emt 0:01:34]} Rg8 {[%emt 0:12:29]} 24. Bg5 {[%emt 0:00:28]} 1-0

[Event "57th Biel Festival ATO 2024"]
[Site "Biel"]
[Date "2024.07.22"]
[Round "6.4"]
[White "Boillat, Maxime"]
[Black "Wiesmann, Dominique"]
[Result "1/2-1/2"]
[ECO "B07"]
[WhiteElo "1768"]
[BlackElo "1963"]
[Annotator "RC"]
[PlyCount "24"]
[EventDate "2024.07.03"]
[EventType "swiss"]
[EventCountry "SUI"]
[SourceTitle "playchess.com"]
[Source "ChessBase"]
[SourceQuality "1"]
[TimeControl "40/5400+30:1800+30"]

1. e4 {[%emt 0:01:17]} d6 {[%emt 0:00:16]} 2. d4 {[%emt 0:00:18]} Nf6 {[%emt 0:00:12]} 3. Nc3 {[%emt 0:00:10]} c6 {[%emt 0:00:10]} 4. g3 {[%emt 0:01:08]} Nbd7 {[%emt 0:03:04]} 5. Bg2 {[%emt 0:00:40]} e5 {[%emt 0:00:16]} 6. Nge2 {[%emt 0:00:26]} g6 {[%emt 0:03:09]} 7. O-O {[%emt 0:00:20]} Bg7 {[%emt 0:00:12]} 8. h3 {[%emt 0:00:24]} O-O {[%emt 0:04:38]} 9. Be3 {[%emt 0:00:20]} Re8 {[%emt 0:01:51]} 10. f4 {[%emt 0:00:09]} Nf8 {[%emt 0:07:17]} 11. g4 {[%emt 0:09:51]} Qc7 {[%emt 0:09:18]} 12. Qd2 {[%emt 0:06:47]} Ne6 {[%emt 0:05:49]} 1/2-1/2